fUSD/lending_fUSD_20240708
["ID","MTS","AMOUNT","RATE_DAILY","PERIOD"]
[331482048,1720438063598,-710.2,0.0005041,120]
[331482049,1720438063632,-500.0,0.0005041,120]
[331482050,1720438063667,-500.0,0.0005041,120]
[331482051,1720438063704,-578.06,0.0005041,120]
[331482052,1720438063741,-500.0,0.0005041,120]
[331482053,1720438063777,-500.0,0.0005041,120]
[331482054,1720438063815,-929.58,0.0005041,120]
[331482055,1720438063855,-500.0,0.0005041,120]
[331482056,1720438063908,-500.0,0.0005041,120]
[331482057,1720438063950,-737.43,0.0005041,120]
[331482058,1720438063990,-1373.64,0.0005041,120]
[331482059,1720438064026,-539.13,0.0005041,120]
[331482060,1720438064064,-628.14,0.0005041,120]
[331482061,1720438064102,-500.0,0.0005041,120]
[331482062,1720438064139,-2378.31,0.0005041,120]
[331482063,1720438064176,-618.5,0.0005041,120]
[331482064,1720438064214,-500.0,0.0005041,120]
[331482065,1720438064255,-500.0,0.0005041,120]
[331482066,1720438064294,-501.58549827,0.0005041,120]
[331482067,1720438064330,-500.0,0.0005041,120]
[331482068,1720438064372,-604.87,0.0005041,120]
[331482069,1720438064421,-500.0,0.0005041,120]
[331482070,1720438064462,-500.0,0.0005041,120]
[331482071,1720438064501,-500.0,0.0005041,120]
[331482072,1720438064539,-500.0,0.0005041,120]
[331482073,1720438064575,-500.0,0.0005041,120]
[331482074,1720438064612,-500.0,0.0005041,120]
[331482075,1720438064647,-575.43,0.0005041,120]
[331482076,1720438064683,-3249.91,0.0005041,120]
[331482077,1720438064720,-2121.94,0.0005041,120]
[331482078,1720438064757,-500.0,0.0005041,120]
[331482079,1720438064792,-1484.69,0.0005041,120]
[331482080,1720438064826,-500.0,0.0005041,120]
[331482081,1720438064860,-1415.03,0.0005041,120]
[331482082,1720438064904,-500.0,0.0005041,120]
[331482083,1720438064942,-500.0,0.0005041,120]
[331482084,1720438064978,-500.0,0.0005041,120]
[331482085,1720438065016,-500.0,0.0005041,120]
[331482086,1720438065050,-500.0,0.0005041,120]
[331482087,1720438065085,-606.58,0.0005041,120]
[331482088,1720438065121,-500.0,0.0005041,120]
[331482089,1720438065157,-500.0,0.0005041,120]
[331482090,1720438065193,-500.0,0.0005041,120]
[331482091,1720438065230,-1775.66,0.0005041,120]
[331482092,1720438065266,-2617.01,0.0005041,120]
[331482093,1720438065303,-644.97705575,0.0005041,120]
[331482094,1720438065339,-500.0,0.0005041,120]
[331482095,1720438065379,-500.0,0.0005041,120]
[331482096,1720438065417,-500.0,0.0005041,120]
[331482097,1720438065454,-817.76,0.0005041,120]
[331482098,1720438065489,-500.0,0.0005041,120]
[331482099,1720438065527,-500.0,0.0005041,120]
[331482100,1720438065563,-500.0,0.0005041,120]
[331482101,1720438065600,-500.0,0.0005041,120]
[331482102,1720438065640,-500.0,0.0005041,120]
[331482103,1720438065679,-500.0,0.0005041,120]
[331482104,1720438065720,-500.0,0.0005041,120]
[331482105,1720438065760,-500.0,0.0005041,120]
[331482106,1720438065802,-500.0,0.0005041,120]
[331482107,1720438065842,-670.77,0.0005041,120]
[331482108,1720438065884,-4545.65,0.0005041,120]
[331482109,1720438065921,-500.0,0.0005041,120]
[331482110,1720438065958,-500.0,0.0005041,120]
[331482111,1720438065994,-1428.1,0.0005041,120]
[331482112,1720438066030,-5370.77,0.0005041,120]
[331482113,1720438066066,-500.0,0.0005041,120]
[331482114,1720438066282,-500.0,0.0005041,120]
[331482115,1720438066319,-1665.53,0.0005041,120]
[331482116,1720438066357,-1529.14,0.0005041,120]
[331482117,1720438066397,-500.0,0.0005041,120]
[331482118,1720438066435,-500.0,0.0005041,120]
[331482119,1720438066473,-1851.79,0.0005041,120]
[331482120,1720438066512,-705.82,0.0005041,120]
[331482121,1720438066551,-810.35,0.0005041,120]
[331482122,1720438066589,-612.18,0.0005041,120]
[331482123,1720438066628,-592.08,0.0005041,120]
[331482124,1720438066665,-500.0,0.0005041,120]
[331482125,1720438066703,-638.54,0.0005041,120]
[331482126,1720438066741,-2810.55,0.0005041,120]
[331482127,1720438066780,-500.0,0.0005041,120]
[331482128,1720438066819,-500.0,0.0005041,120]
[331482129,1720438066859,-4159.47,0.0005041,120]
[331482130,1720438066898,-224.2578464,0.0005041,120]
[331482131,1720438066936,-1771.73,0.0005041,120]
[331482132,1720438066975,-500.0,0.0005041,120]
[331482133,1720438067013,-512.61022026,0.0005041,120]
[331482134,1720438067050,-500.0,0.0005041,120]
[331482135,1720438067085,-500.0,0.0005041,120]
[331482136,1720438067120,-500.0,0.0005041,120]
[331482137,1720438067155,-500.0,0.0005041,120]
[331482138,1720438067190,-500.0,0.0005041,120]
[331482139,1720438067228,-599.01,0.0005041,120]
[331482140,1720438067263,-786.1,0.0005041,120]
[331482141,1720438067299,-500.0,0.0005041,120]
[331482142,1720438067334,-783.57,0.0005041,120]
[331482143,1720438067370,-500.0,0.0005041,120]
[331482144,1720438067407,-1980.59,0.0005041,120]
[331482145,1720438067444,-500.0,0.0005041,120]
[331482146,1720438067480,-500.0,0.0005041,120]
[331482147,1720438067516,-4167.38,0.0005041,120]
[331482148,1720438067552,-500.0,0.0005041,120]
[331482149,1720438067590,-500.0,0.0005041,120]
[331482150,1720438067629,-500.0,0.0005041,120]
[331482151,1720438067669,-588.73,0.0005041,120]
[331482152,1720438067708,-500.0,0.0005041,120]
[331482153,1720438067747,-2910.97,0.0005041,120]
[331482154,1720438067785,-500.0,0.0005041,120]
[331482155,1720438067826,-500.0,0.0005041,120]
[331482156,1720438067866,-527.34,0.0005041,120]
[331482157,1720438067904,-1978.56,0.0005041,120]
[331482158,1720438067941,-500.0,0.0005041,120]
[331482159,1720438067979,-500.0,0.0005041,120]
[331482160,1720438068016,-2309.55,0.0005041,120]
[331482161,1720438068051,-500.0,0.0005041,120]
[331482162,1720438068087,-500.0,0.0005041,120]
[331482163,1720438068124,-500.0,0.0005041,120]
[331482164,1720438068159,-500.0,0.0005041,120]
[331482165,1720438068194,-500.0,0.0005041,120]
[331482166,1720438068230,-500.0,0.0005041,120]
[331482167,1720438068263,-5737.69,0.0005041,120]
[331482168,1720438068297,-344.99452061,0.0005041,120]
[331482169,1720438068332,-4114.02,0.0005041,120]
[331482170,1720438068368,-500.0,0.0005041,120]
[331482171,1720438068402,-500.0,0.0005041,120]
[331482172,1720438068437,-500.0,0.0005041,120]
[331482173,1720438068472,-500.0,0.0005041,120]
[331482174,1720438068509,-500.0,0.0005041,120]
[331482175,1720438068545,-649.04,0.0005041,120]
[331482176,1720438068580,-500.0,0.0005041,120]
[331482177,1720438068617,-1257.97,0.0005041,120]
[331482178,1720438068658,-4945.17,0.0005041,120]
[331482179,1720438068698,-500.0,0.0005041,120]
[331482180,1720438068735,-3615.09,0.0005041,120]
[331482181,1720438068772,-500.0,0.0005041,120]
[331482182,1720438068809,-2750.23,0.0005041,120]
[331482183,1720438068846,-150.0,0.0005041,120]
[331482184,1720438068885,-1195.11,0.0005041,120]
[331482185,1720438068925,-500.0,0.0005041,120]
[331482186,1720438068965,-500.0,0.0005041,120]
[331482187,1720438069005,-500.0,0.0005041,120]
[331482188,1720438069046,-2303.83,0.0005041,120]
[331482189,1720438069088,-500.0,0.0005041,120]
[331482190,1720438069130,-1030.01,0.0005041,120]
[331482191,1720438069168,-500.0,0.0005041,120]
[331482192,1720438069209,-500.0,0.0005041,120]
[331482193,1720438069253,-503.23369353,0.0005041,120]
[331482194,1720438069293,-1108.77,0.0005041,120]
[331482195,1720438069333,-500.0,0.0005041,120]
[331482196,1720438069371,-1037.41,0.0005041,120]
[331482197,1720438069411,-500.0,0.0005041,120]
[331482198,1720438069452,-1129.3,0.0005041,120]
[331482199,1720438069493,-500.0,0.0005041,120]
[331482200,1720438069533,-500.0,0.0005041,120]
[331482201,1720438069571,-500.0,0.0005041,120]
[331482202,1720438069608,-500.0,0.0005041,120]
[331482203,1720438069645,-500.0,0.0005041,120]
[331482204,1720438069683,-500.0,0.0005041,120]
[331482205,1720438069721,-505.50549297,0.0005041,120]
[331482206,1720438069760,-3645.11,0.0005041,120]
[331482207,1720438069797,-500.0,0.0005041,120]
[331482208,1720438069835,-537.46,0.0005041,120]
[331482209,1720438069876,-500.0,0.0005041,120]
[331482210,1720438069914,-500.0,0.0005041,120]
[331482211,1720438069951,-779.78,0.0005041,120]
[331482212,1720438069989,-1029.1,0.0005041,120]
[331482213,1720438070027,-500.0,0.0005041,120]
[331482214,1720438070064,-2932.79,0.0005041,120]
[331482215,1720438070103,-724.0,0.0005041,120]
[331482216,1720438070142,-500.0,0.0005041,120]
[331482217,1720438070183,-500.0,0.0005041,120]
[331482218,1720438070401,-500.0,0.0005041,120]
[331482219,1720438070441,-500.0,0.0005041,120]
[331482220,1720438070478,-500.0,0.0005041,120]
[331482221,1720438070516,-745.19,0.0005041,120]
[331482222,1720438070555,-777.31,0.0005041,120]
[331482223,1720438070593,-2842.73,0.0005041,120]
[331482224,1720438070631,-731.02,0.0005041,120]
[331482225,1720438070669,-3212.9,0.0005041,120]
[331482226,1720438070707,-500.0,0.0005041,120]
[331482227,1720438070744,-970.78,0.0005041,120]
[331482228,1720438070782,-500.0,0.0005041,120]
[331482229,1720438070820,-500.0,0.0005041,120]
[331482230,1720438070859,-500.0,0.0005041,120]
[331482231,1720438070896,-500.0,0.0005041,120]
[331482232,1720438070934,-500.0,0.0005041,120]
[331482233,1720438070972,-500.0,0.0005041,120]
[331482234,1720438071010,-866.32,0.0005041,120]
[331482235,1720438071047,-500.0,0.0005041,120]
[331482236,1720438071083,-2301.35,0.0005041,120]
[331482237,1720438071121,-656.72,0.0005041,120]
[331482238,1720438071160,-500.0,0.0005041,120]
[331482239,1720438071198,-1651.75,0.0005041,120]
[331482240,1720438071236,-2707.16,0.0005041,120]
[331482241,1720438071273,-1487.69,0.0005041,120]
[331482242,1720438071308,-500.0,0.0005041,120]
[331482243,1720438071346,-1102.07,0.0005041,120]
[331482244,1720438071386,-1851.41,0.0005041,120]
[331482245,1720438071423,-500.0,0.0005041,120]
[331482246,1720438071460,-980.85,0.0005041,120]
[331482247,1720438071496,-500.0,0.0005041,120]
[331482248,1720438071535,-500.0,0.0005041,120]
[331482249,1720438071572,-500.0,0.0005041,120]
[331482250,1720438071609,-4705.08,0.0005041,120]
[331482251,1720438071645,-1550.67,0.0005041,120]
[331482252,1720438071683,-500.0,0.0005041,120]
[331482253,1720438071718,-500.0,0.0005041,120]
[331482254,1720438071756,-855.98,0.0005041,120]
[331482255,1720438071792,-500.0,0.0005041,120]
[331482256,1720438071828,-500.0,0.0005041,120]
[331482257,1720438071865,-500.0,0.0005041,120]
[331482258,1720438071904,-3524.54,0.0005041,120]
[331482259,1720438071939,-500.0,0.0005041,120]
[331482260,1720438071973,-500.0,0.0005041,120]
[331482261,1720438072009,-500.0,0.0005041,120]
[331482262,1720438072045,-500.0,0.0005041,120]
[331482263,1720438072083,-3542.65,0.0005041,120]
[331482264,1720438072116,-500.0,0.0005041,120]
[331482265,1720438072151,-500.0,0.0005041,120]
[331482266,1720438072186,-1404.03,0.0005041,120]
[331482267,1720438072221,-520.47,0.0005041,120]
[331482268,1720438072255,-569.31,0.0005041,120]
[331482269,1720438072292,-500.0,0.0005041,120]
[331482270,1720438072330,-500.0,0.0005041,120]
[331482271,1720438072365,-500.0,0.0005041,120]
[331482272,1720438072403,-500.0,0.0005041,120]
[331482273,1720438072437,-1256.58,0.0005041,120]
[331482274,1720438072472,-500.0,0.0005041,120]
[331482275,1720438072507,-500.0,0.0005041,120]
[331482276,1720438072543,-500.0,0.0005041,120]
[331482277,1720438072581,-4775.84,0.0005041,120]
[331482278,1720438072616,-804.05,0.0005041,120]
[331482279,1720438072654,-500.0,0.0005041,120]
[331482280,1720438072689,-500.0,0.0005041,120]
[331482281,1720438072723,-2135.26,0.0005041,120]
[331482282,1720438072759,-500.0,0.0005041,120]
[331482283,1720438072794,-536.3,0.0005041,120]
[331482284,1720438072832,-802.42,0.0005041,120]
[331482285,1720438072866,-500.0,0.0005041,120]
[331482286,1720438072898,-968.64,0.0005041,120]
[331482287,1720438072930,-500.0,0.0005041,120]
[331482288,1720438072963,-1082.19,0.0005041,120]
[331482289,1720438072994,-500.0,0.0005041,120]
[331482290,1720438073025,-500.0,0.0005041,120]
[331482291,1720438073059,-500.0,0.0005041,120]
[331482292,1720438073093,-500.0,0.0005041,120]
[331482293,1720438073127,-1570.5,0.0005041,120]
[331482294,1720438073159,-500.0,0.0005041,120]
[331482295,1720438073193,-1935.41,0.0005041,120]
[331482296,1720438073226,-500.0,0.0005041,120]
[331482297,1720438073259,-500.0,0.0005041,120]
[331482299,1720438073293,-1670.66,0.0005041,120]
[331482300,1720438073326,-500.0,0.0005041,120]
[331482301,1720438073360,-500.0,0.0005041,120]
[331482302,1720438073394,-5085.83,0.0005041,120]
[331482303,1720438073431,-500.0,0.0005041,120]
[331482304,1720438073469,-500.0,0.0005041,120]
[331482305,1720438073505,-213.28267307,0.0005041,120]
[331482306,1720438073539,-500.0,0.0005041,120]
[331482307,1720438073572,-500.0,0.0005041,120]
[331482308,1720438073607,-500.0,0.0005041,120]
[331482309,1720438073641,-500.0,0.0005041,120]
[331482310,1720438073675,-500.0,0.0005041,120]
[331482311,1720438073709,-500.0,0.0005041,120]
[331482312,1720438073745,-500.0,0.0005041,120]
[331482313,1720438073781,-771.26,0.0005041,120]
[331482314,1720438073818,-500.0,0.0005041,120]
[331482315,1720438073858,-500.0,0.0005041,120]
[331482316,1720438073900,-500.0,0.0005041,120]
[331482317,1720438073941,-20855.15,0.0005041,120]
[331482318,1720438073980,-813.82,0.0005041,120]
[331482319,1720438074019,-500.0,0.0005041,120]
[331482320,1720438074059,-500.0,0.0005041,120]
[331482321,1720438074099,-2200.14,0.0005041,120]
[331482322,1720438074140,-1326.11,0.0005041,120]
[331482323,1720438074364,-3881.42,0.0005041,120]
[331482324,1720438074406,-1256.69,0.0005041,120]
[331482325,1720438074450,-500.0,0.0005041,120]
[331482326,1720438074490,-500.0,0.0005041,120]
[331482327,1720438074532,-500.0,0.0005041,120]
[331482328,1720438074575,-1747.96,0.0005041,120]
[331482329,1720438074615,-500.0,0.0005041,120]
[331482330,1720438074657,-500.0,0.0005041,120]
[331482331,1720438074700,-500.0,0.0005041,120]
[331482332,1720438074740,-530.51,0.0005041,120]
[331482333,1720438074778,-507.16852523,0.0005041,120]
[331482334,1720438074815,-10457.36,0.0005041,120]
[331482335,1720438074852,-500.0,0.0005041,120]
[331482336,1720438074888,-500.0,0.0005041,120]
[331482337,1720438074925,-500.0,0.0005041,120]
[331482338,1720438074963,-3955.09,0.0005041,120]
[331482339,1720438075003,-323.6672756,0.0005041,120]
[331482340,1720438075041,-500.0,0.0005041,120]
[331482341,1720438075080,-500.0,0.0005041,120]
[331482342,1720438075118,-941.75,0.0005041,120]
[331482343,1720438075158,-500.0,0.0005041,120]
[331482344,1720438075200,-1163.07,0.0005041,120]
[331482345,1720438075242,-362.28,0.0005041,120]
[331482346,1720438075282,-615.48776209,0.0005041,120]
[331482347,1720438075319,-500.0,0.0005041,120]
[331482348,1720438075359,-500.0,0.0005041,120]
[331482349,1720438075396,-500.0,0.0005041,120]
[331482350,1720438075436,-500.0,0.0005041,120]
[331482351,1720438075476,-500.0,0.0005041,120]
[331482352,1720438075518,-500.0,0.0005041,120]
[331482353,1720438075559,-502.09627675,0.0005041,120]
[331482354,1720438075603,-915.13,0.0005041,120]
[331482355,1720438075644,-500.0,0.0005041,120]
[331482356,1720438075688,-4238.82,0.0005041,120]
[331482357,1720438075730,-532.42,0.0005041,120]
[331482358,1720438075773,-500.0,0.0005041,120]
[331482359,1720438075815,-297.65,0.0005041,120]
[331482360,1720438075855,-3090.27,0.0005041,120]
[331482361,1720438075892,-500.0,0.0005041,120]
[331482362,1720438075929,-511.24,0.0005041,120]
[331482363,1720438075967,-5448.63,0.0005041,120]
[331482364,1720438076006,-500.0,0.0005041,120]
[331482365,1720438076045,-2062.26,0.0005041,120]
[331482366,1720438076081,-500.0,0.0005041,120]
[331482367,1720438076119,-2547.29,0.0005041,120]
[331482368,1720438076159,-4594.83,0.0005041,120]
[331482369,1720438076195,-500.0,0.0005041,120]
[331482370,1720438076231,-500.0,0.0005041,120]
[331482371,1720438076269,-1773.39,0.0005041,120]
[331482372,1720438076305,-722.73,0.0005041,120]
[331482373,1720438076340,-847.59,0.0005041,120]
[331482374,1720438076376,-8365.78,0.0005041,120]
[331482375,1720438076413,-500.0,0.0005041,120]
[331482376,1720438076448,-500.0,0.0005041,120]
[331482377,1720438076485,-962.79,0.0005041,120]
[331482378,1720438076525,-1826.77,0.0005041,120]
[331482379,1720438076562,-500.0,0.0005041,120]
[331482380,1720438076599,-500.0,0.0005041,120]
[331482381,1720438076635,-500.0,0.0005041,120]
[331482382,1720438076672,-1768.04,0.0005041,120]
[331482383,1720438076709,-500.0,0.0005041,120]
[331482384,1720438076749,-1447.56,0.0005041,120]
[331482385,1720438076787,-4590.57,0.0005041,120]
[331482386,1720438076825,-1801.6,0.0005041,120]
[331482387,1720438076864,-500.0,0.0005041,120]
[331482388,1720438076900,-500.0,0.0005041,120]
[331482389,1720438076938,-2861.76,0.0005041,120]
[331482390,1720438076976,-1122.87,0.0005041,120]
[331482391,1720438077013,-500.0,0.0005041,120]
[331482392,1720438077051,-500.0,0.0005041,120]
[331482393,1720438077090,-6551.73,0.0005041,120]
[331482394,1720438077128,-526.91,0.0005041,120]
[331482395,1720438077171,-659.22,0.0005041,120]
[331482396,1720438077210,-500.0,0.0005041,120]
[331482397,1720438077250,-314.77,0.0005041,120]
[331482398,1720438077287,-500.0,0.0005041,120]
[331482399,1720438077323,-500.0,0.0005041,120]
[331482400,1720438077359,-500.0,0.0005041,120]
[331482401,1720438077396,-686.39,0.0005041,120]
[331482402,1720438077436,-1136.27,0.0005041,120]
[331482403,1720438077474,-3164.35,0.0005041,120]
[331482404,1720438077510,-505.54,0.0005041,120]
[331482405,1720438077548,-1162.49,0.0005041,120]
[331482406,1720438077584,-1906.95,0.0005041,120]
[331482407,1720438077621,-500.0,0.0005041,120]
[331482408,1720438077663,-1298.4,0.0005041,120]
[331482409,1720438077701,-1181.68,0.0005041,120]
[331482410,1720438077741,-500.0,0.0005041,120]
[331482411,1720438077779,-2349.1,0.0005041,120]
[331482412,1720438077818,-811.45,0.0005041,120]
[331482413,1720438077856,-500.0,0.0005041,120]
[331482414,1720438077890,-500.0,0.0005041,120]
[331482415,1720438077926,-500.0,0.0005041,120]
[331482416,1720438077961,-500.0,0.0005041,120]
[331482417,1720438077996,-2038.75,0.0005041,120]
[331482418,1720438078031,-759.35,0.0005041,120]
[331482419,1720438078064,-1664.25,0.0005041,120]
[331482420,1720438078099,-500.0,0.0005041,120]
[331482421,1720438078136,-500.0,0.0005041,120]
[331482422,1720438078168,-356.0,0.000506,30]
[331482423,1720438078202,-500.0,0.00050684,120]
[331482424,1720438078236,-500.0,0.00050684,120]
[331482425,1720438078270,-515.61638225,0.00050684,120]
[331482426,1720438078509,-550.65450506,0.00050684,120]
[331482427,1720438078550,-218.65145552,0.00050684,120]
[331482428,1720438078587,-500.0,0.00050684,120]
[331482429,1720438078623,-633.31,0.00050684,120]
[331482430,1720438078661,-502.91862177,0.00050684,120]
[331482431,1720438078697,-500.0,0.00050684,120]
[331482432,1720438078732,-500.0,0.00050684,120]
[331482433,1720438078770,-827.79,0.00050684,120]
[331482434,1720438078807,-1270.71,0.00050684,120]
[331482435,1720438078845,-2024.69,0.00050684,120]
[331482436,1720438078888,-500.0,0.00050684,120]
[331482437,1720438078928,-1741.22,0.00050684,120]
[331482438,1720438078968,-1241.64,0.00050684,120]
[331482439,1720438079006,-1264.41,0.00050684,120]
[331482440,1720438079045,-500.0,0.00050684,120]
[331482441,1720438079086,-812.78,0.00050684,120]
[331482442,1720438079126,-500.0,0.00050684,120]
[331482443,1720438079170,-500.0,0.00050684,120]
[331482444,1720438079212,-597.99,0.00050684,120]
[331482445,1720438079255,-500.0,0.00050684,120]
[331482446,1720438079294,-500.0,0.00050684,120]
[331482447,1720438079337,-500.0,0.00050684,120]
[331482448,1720438079377,-500.0,0.00050684,120]
[331482449,1720438079419,-592.5,0.00050684,120]
[331482450,1720438079461,-500.0,0.00050684,120]
[331482451,1720438079502,-500.0,0.00050684,120]
[331482452,1720438079540,-500.0,0.00050684,120]
[331482453,1720438079577,-500.0,0.00050684,120]
[331482454,1720438079615,-500.0,0.00050684,120]
[331482455,1720438079652,-1087.49,0.00050684,120]
[331482456,1720438079690,-602.54,0.00050684,120]
[331482457,1720438079727,-1694.76,0.00050684,120]
[331482458,1720438079765,-500.0,0.00050684,120]
[331482459,1720438079802,-978.12,0.00050684,120]
[331482460,1720438079842,-500.0,0.00050684,120]
[331482461,1720438079882,-1886.47,0.00050684,120]
[331482462,1720438079920,-1514.14,0.00050684,120]
[331482463,1720438079961,-500.0,0.00050684,120]
[331482464,1720438080000,-500.0,0.00050684,120]
[331482465,1720438080041,-500.0,0.00050684,120]
[331482466,1720438080082,-500.0,0.00050684,120]
[331482467,1720438080126,-612.16,0.00050684,120]
[331482468,1720438080172,-500.0,0.00050684,120]
[331482469,1720438080216,-859.41,0.00050684,120]
[331482470,1720438080263,-715.44,0.00050684,120]
[331482471,1720438080309,-546.02722919,0.00050684,120]
[331482472,1720438080352,-500.0,0.00050684,120]
[331482473,1720438080398,-1041.8,0.00050684,120]
[331482474,1720438080447,-500.0,0.00050684,120]
[331482475,1720438080497,-500.0,0.00050684,120]
[331482476,1720438080543,-1826.92,0.00050684,120]
[331482477,1720438080586,-500.0,0.00050684,120]
[331482478,1720438080629,-611.62,0.00050684,120]
[331482479,1720438080673,-500.0,0.00050684,120]
[331482480,1720438080715,-500.0,0.00050684,120]
[331482481,1720438080758,-500.0,0.00050684,120]
[331482482,1720438080799,-500.0,0.00050684,120]
[331482483,1720438080839,-500.0,0.00050684,120]
[331482484,1720438080879,-500.0,0.00050684,120]
[331482485,1720438080922,-2300.26,0.00050684,120]
[331482486,1720438080963,-500.0,0.00050684,120]
[331482487,1720438081002,-500.0,0.00050684,120]
[331482488,1720438081044,-500.0,0.00050684,120]
[331482489,1720438081089,-500.0,0.00050684,120]
[331482490,1720438081132,-500.0,0.00050684,120]
[331482491,1720438081177,-2614.96,0.00050684,120]
[331482492,1720438081223,-500.0,0.00050684,120]
[331482493,1720438081269,-500.0,0.00050684,120]
[331482494,1720438081311,-2148.51,0.00050684,120]
[331482495,1720438081354,-500.0,0.00050684,120]
[331482496,1720438081396,-500.0,0.00050684,120]
[331482497,1720438081437,-633.82,0.00050684,120]
[331482498,1720438081480,-1837.33,0.00050684,120]
[331482499,1720438081522,-500.0,0.00050684,120]
[331482500,1720438081564,-500.0,0.00050684,120]
[331482501,1720438081608,-500.0,0.00050684,120]
[331482502,1720438081653,-500.0,0.00050684,120]
[331482503,1720438081696,-522.56,0.00050684,120]
[331482504,1720438081739,-500.0,0.00050684,120]
[331482505,1720438081782,-500.0,0.00050684,120]
[331482506,1720438081825,-500.0,0.00050684,120]
[331482507,1720438081868,-1448.04,0.00050684,120]
[331482508,1720438081911,-2564.45,0.00050684,120]
[331482509,1720438081955,-852.59,0.00050684,120]
[331482510,1720438081998,-2132.97,0.00050684,120]
[331482511,1720438082040,-500.0,0.00050684,120]
[331482512,1720438082080,-500.0,0.00050684,120]
[331482513,1720438082121,-500.0,0.00050684,120]
[331482514,1720438082163,-500.0,0.00050684,120]
[331482515,1720438082204,-679.05,0.00050684,120]
[331482516,1720438082248,-500.0,0.00050684,120]
[331482517,1720438082291,-2109.64,0.00050684,120]
[331482518,1720438082333,-600.73,0.00050684,120]
[331482519,1720438082375,-578.68,0.00050684,120]
[331482520,1720438082420,-1115.3,0.00050684,120]
[331482521,1720438082464,-500.0,0.00050684,120]
[331482522,1720438082507,-500.0,0.00050684,120]
[331482523,1720438082548,-1725.52,0.00050684,120]
[331482524,1720438082590,-500.0,0.00050684,120]
[331482525,1720438082633,-1003.07,0.00050684,120]
[331482526,1720438082676,-723.07,0.00050684,120]
[331482527,1720438082721,-500.0,0.00050684,120]
[331482528,1720438082765,-981.91,0.00050684,120]
[331482529,1720438082808,-500.0,0.00050684,120]
[331482530,1720438083028,-500.0,0.00050684,120]
[331482531,1720438083070,-622.24,0.00050684,120]
[331482532,1720438083112,-500.0,0.00050684,120]
[331482533,1720438083154,-500.0,0.00050684,120]
[331482534,1720438083196,-500.0,0.00050684,120]
[331482535,1720438083236,-745.91,0.00050684,120]
[331482536,1720438083276,-500.0,0.00050684,120]
[331482537,1720438083320,-594.32,0.00050684,120]
[331482538,1720438083362,-870.94,0.00050684,120]
[331482539,1720438083402,-623.11,0.00050684,120]
[331482540,1720438083444,-500.0,0.00050684,120]
[331482541,1720438083487,-1347.4,0.00050684,120]
[331482542,1720438083528,-500.0,0.00050684,120]
[331482543,1720438083571,-500.0,0.00050684,120]
[331482544,1720438083613,-652.48,0.00050684,120]
[331482545,1720438083656,-560.3,0.00050684,120]
[331482546,1720438083700,-978.58,0.00050684,120]
[331482547,1720438083743,-500.0,0.00050684,120]
[331482548,1720438083787,-1040.65,0.00050684,120]